bitfinex/quotes_BTCUSD_20250802
["timestamp","ask_amount","ask_price","bid_price","bid_amount"]
[1754114696309,5.46401861,114150.0,114140.0,0.00514338]
[1754114696497,2.33697161,114150.0,114140.0,0.00514338]
[1754114696756,5.46853861,114150.0,114140.0,0.00514338]
[1754114696957,5.38433872,114150.0,114140.0,0.00514338]
[1754114697227,5.37981872,114150.0,114140.0,0.00514338]
[1754114698200,5.37981872,114150.0,114140.0,0.00014338]
[1754114698406,5.37981872,114150.0,114140.0,0.00314338]
[1754114698407,3.9949258,114150.0,114140.0,0.00314338]
[1754114698632,3.9994458,114150.0,114140.0,0.00314338]
[1754114698848,5.37981872,114150.0,114140.0,0.00314338]
[1754114699098,5.37981872,114150.0,114140.0,0.00114338]
[1754114699302,5.37981872,114150.0,114140.0,0.00214338]
[1754114699569,2.25277172,114150.0,114140.0,0.00214338]
[1754114699805,5.36610519,114150.0,114140.0,0.00214338]
[1754114700379,3.98121227,114150.0,114140.0,0.00214338]
[1754114700866,5.36610519,114150.0,114140.0,0.02707338]
[1754114701275,4.67365873,114150.0,114140.0,0.02707338]
[1754114701665,3.98121227,114150.0,114140.0,0.02707338]
[1754114701980,4.67365873,114150.0,114140.0,0.02707338]
[1754114702630,0.86787907,114150.0,114140.0,0.02707338]
[1754114702854,5.37981899,114150.0,114140.0,0.02707338]
[1754114703352,4.68737253,114150.0,114140.0,0.02707338]
[1754114704073,5.36610519,114150.0,114140.0,0.02707338]
[1754114704526,3.98121227,114150.0,114140.0,0.02707338]
[1754114704751,2.23905819,114150.0,114140.0,0.02707338]
[1754114704971,5.36610519,114150.0,114140.0,0.02707338]
[1754114705855,5.36610519,114150.0,114140.0,0.03014338]
[1754114706478,2.23905819,114150.0,114140.0,0.03014338]
[1754114706704,5.36610519,114150.0,114140.0,0.03014338]
[1754114707345,5.36610519,114150.0,114140.0,0.02707338]
[1754114708205,5.37981901,114150.0,114140.0,0.02707338]
[1754114708425,3.99492609,114150.0,114140.0,0.02707338]
[1754114708623,5.37981901,114150.0,114140.0,0.02707338]
[1754114709953,5.37981901,114150.0,114140.0,0.03014338]
[1754114710373,3.99492609,114150.0,114140.0,0.03014338]
[1754114711144,4.68737255,114150.0,114140.0,0.03014338]
[1754114713963,3.99492609,114150.0,114140.0,0.03014338]
[1754114714130,4.68737255,114150.0,114140.0,0.03014338]
[1754114717543,4.77157244,114150.0,114140.0,0.03014338]
[1754114717748,4.68737255,114150.0,114140.0,0.03014338]
[1754114721582,4.74005255,114150.0,114140.0,0.03014338]
[1754114721794,4.68737255,114150.0,114140.0,0.03014338]
[1754114723490,3.99492609,114150.0,114140.0,0.03014338]
[1754114723718,4.68737255,114150.0,114140.0,0.03014338]
[1754114726110,0.5152234,114140.0,114130.0,0.04603]
[1754114726308,4.55555675,114140.0,114130.0,0.04617347]
[1754114726647,4.55555675,114140.0,114130.0,0.04822347]
[1754114726843,4.58190575,114140.0,114130.0,0.04822347]
[1754114727264,1.45485875,114140.0,114130.0,0.05022347]
[1754114727528,4.59536873,114140.0,114130.0,0.05022347]
[1754114727667,4.59536873,114140.0,114130.0,0.05122347]
[1754114727839,4.58190575,114140.0,114130.0,0.05122347]
[1754114729608,4.10690831,114140.0,114130.0,0.05122347]
[1754114729786,4.82626628,114140.0,114130.0,0.05122347]
[1754114730091,4.13381982,114140.0,114130.0,0.04606347]
[1754114730264,4.79935477,114140.0,114130.0,0.04606347]
[1754114730439,4.88355466,114140.0,114130.0,0.04606347]
[1754114730811,1.77022284,114140.0,114130.0,0.04917347]
[1754114731071,4.89726984,114140.0,114130.0,0.04917347]
[1754114731695,4.92418135,114140.0,114130.0,0.04917347]
[1754114731915,4.92418135,114140.0,114130.0,0.02314347]
[1754114732127,4.92870135,114140.0,114130.0,0.02314347]
[1754114732465,4.92870135,114140.0,114130.0,0.01436082]
[1754114732669,4.92870135,114140.0,114130.0,0.01236082]
[1754114733077,4.84450146,114140.0,114130.0,0.00457817]
[1754114733384,4.1785746,114140.0,114130.0,0.00457817]
[1754114733512,4.85730588,114140.0,114130.0,0.00457817]
[1754114733747,3.83664629,114130.0,114120.0,0.02332]
[1754114733929,4.66817275,114130.0,114120.0,0.02647776]
[1754114734355,5.03657253,114130.0,114120.0,0.02336776]
[1754114734560,4.25992618,114130.0,114120.0,0.02336776]
[1754114734764,3.85975013,114120.0,114110.0,0.02332]
[1754114735001,4.80258799,114120.0,114110.0,0.02647771]
[1754114735220,4.80258799,114120.0,114110.0,0.02852771]
[1754114735646,4.08323002,114120.0,114110.0,0.02829761]
[1754114735846,4.08323002,114120.0,114110.0,0.02929761]
[1754114735847,4.77567648,114120.0,114110.0,0.02929761]
[1754114736058,4.08323002,114120.0,114110.0,0.02929761]
[1754114736283,4.77567648,114120.0,114110.0,0.02929761]
[1754114736487,4.78939309,114120.0,114110.0,0.02929761]
[1754114736717,4.12330063,114120.0,114110.0,0.02929761]
[1754114736930,4.81574709,114120.0,114110.0,0.03029761]
[1754114737764,4.89994698,114120.0,114110.0,0.03029761]
[1754114737980,4.20750052,114120.0,114110.0,0.03029761]
[1754114738202,4.81574709,114120.0,114110.0,0.03029761]
[1754114738416,4.15021214,114120.0,114110.0,0.03029761]
[1754114739070,4.8426586,114120.0,114110.0,0.03029761]
[1754114739514,4.15021214,114120.0,114110.0,0.03029761]
[1754114739658,4.12330063,114120.0,114110.0,0.03029761]
[1754114739824,4.8426586,114120.0,114110.0,0.03029761]
[1754114740245,4.92685849,114120.0,114110.0,0.03029761]
[1754114741062,4.92685849,114120.0,114110.0,0.00221761]
[1754114741288,4.92685849,114120.0,114110.0,0.02513761]
[1754114741500,5.61930495,114120.0,114110.0,0.00221761]
[1754114741691,5.62382495,114120.0,114110.0,0.00221761]
[1754114741907,5.61930495,114120.0,114110.0,0.00221761]
[1754114742297,5.61930495,114120.0,114110.0,0.02513761]
[1754114742481,5.53510506,114120.0,114110.0,0.02513761]
[1754114743728,4.15021214,114120.0,114110.0,0.02513761]
[1754114744102,4.8426586,114120.0,114110.0,0.02513761]
[1754114744317,4.8426586,114120.0,114110.0,0.02824761]
[1754114745554,4.15021214,114120.0,114110.0,0.02824761]
[1754114745770,5.61930495,114120.0,114110.0,0.02824761]
[1754114745966,4.23441203,114120.0,114110.0,0.02513761]
[1754114746174,4.23441203,114120.0,114110.0,0.00221761]
[1754114746550,5.61930495,114120.0,114110.0,0.00221761]
[1754114746944,5.61930495,114120.0,114110.0,0.02513761]
[1754114747143,5.53510506,114120.0,114110.0,0.02513761]
[1754114747344,4.15021214,114120.0,114110.0,0.02513761]
[1754114747771,5.53510506,114120.0,114110.0,0.02513761]
[1754114748370,5.53962506,114120.0,114110.0,0.00221761]
[1754114748788,4.15473214,114120.0,114110.0,0.00221761]
[1754114748986,5.53510506,114120.0,114110.0,0.00221761]
[1754114749185,5.53510506,114120.0,114110.0,0.02501761]
[1754114749643,4.15021214,114120.0,114110.0,0.02501761]
[1754114749837,4.15021214,114120.0,114110.0,0.02812761]
[1754114750041,5.53510506,114120.0,114110.0,0.02812761]
[1754114750465,4.15021214,114120.0,114110.0,0.02812761]
[1754114750674,5.53510506,114120.0,114110.0,0.02501761]
[1754114750879,5.61930495,114120.0,114110.0,0.02501761]
[1754114751088,4.15021214,114120.0,114110.0,0.02501761]
[1754114751609,5.53510506,114120.0,114110.0,0.02501761]
[1754114752443,4.15021214,114120.0,114110.0,0.02501761]
[1754114752808,5.53510506,114120.0,114110.0,0.02501761]
[1754114753706,4.15021214,114120.0,114110.0,0.02501761]
[1754114754116,5.61930495,114120.0,114110.0,0.02501761]
[1754114754373,5.53510506,114120.0,114110.0,0.02501761]
[1754114756729,5.53510506,114120.0,114110.0,0.01623318]
[1754114757110,5.53510506,114120.0,114100.0,0.30355]
[1754114757111,3.80976549,114110.0,114100.0,0.30355]
[1754114757294,4.75522288,114110.0,114100.0,0.30569782]
[1754114757490,4.06277642,114110.0,114100.0,0.30569782]
[1754114757718,4.78157888,114110.0,114100.0,0.30569782]
[1754114757918,4.08913242,114110.0,114100.0,0.30569782]
[1754114758454,4.78157888,114110.0,114100.0,0.30569782]
[1754114758595,4.08913242,114110.0,114100.0,0.32979782]
[1754114758786,4.78157888,114110.0,114100.0,0.32979782]
[1754114758986,3.93913242,114110.0,114100.0,0.33179782]
[1754114759194,4.03540538,114110.0,114100.0,0.33179782]
[1754114759398,4.92785184,114110.0,114100.0,0.32979782]
[1754114759838,4.72785184,114110.0,114100.0,0.33079782]
[1754114760287,4.03540538,114110.0,114100.0,0.33079782]
[1754114760479,4.72785184,114110.0,114100.0,0.33079782]
[1754114761903,4.03540538,114110.0,114100.0,0.33079782]
[1754114762066,4.72785184,114110.0,114100.0,0.33079782]
[1754114762269,4.03540538,114110.0,114100.0,0.33079782]
[1754114762675,4.72785184,114110.0,114100.0,0.33079782]
[1754114763969,4.03540538,114110.0,114100.0,0.33079782]
[1754114764263,4.72785184,114110.0,114100.0,0.33079782]
[1754114765333,4.03540538,114110.0,114100.0,0.33079782]
[1754114765512,4.72785184,114110.0,114100.0,0.33079782]
[1754114767644,4.03540538,114110.0,114100.0,0.33079782]
[1754114767819,4.72785184,114110.0,114100.0,0.33079782]
[1754114769136,4.7415695,114110.0,114100.0,0.33079782]
[1754114769482,4.64299575,114110.0,114100.0,0.33079782]
[1754114770871,4.04912304,114110.0,114100.0,0.33079782]
[1754114771028,4.64299575,114110.0,114100.0,0.33079782]
[1754114772645,1.51594875,114110.0,114100.0,0.33079782]
[1754114772858,4.64299575,114110.0,114100.0,0.33079782]
[1754114774593,4.04912304,114110.0,114100.0,0.33079782]
[1754114774793,4.64299575,114110.0,114100.0,0.33079782]
[1754114776720,4.04912304,114110.0,114100.0,0.33079782]
[1754114776928,4.64299575,114110.0,114100.0,0.33079782]
[1754114777623,4.04912304,114110.0,114100.0,0.33079782]
[1754114777838,4.64299575,114110.0,114100.0,0.33079782]
[1754114779107,4.64299575,114110.0,114100.0,0.30248782]
[1754114779290,4.65420575,114110.0,114100.0,0.30248782]
[1754114779646,4.68157679,114110.0,114100.0,0.30248782]
[1754114780845,4.67036679,114110.0,114100.0,0.30248782]
[1754114781876,4.45969216,114110.0,114100.0,0.30248782]
[1754114782082,4.63496163,114110.0,114100.0,0.30248782]
[1754114782494,4.63496163,114110.0,114100.0,0.32558782]
[1754114783234,4.04108892,114110.0,114100.0,0.32558782]
[1754114783422,1.50791463,114110.0,114100.0,0.32558782]
[1754114783635,4.63496163,114110.0,114100.0,0.32558782]
[1754114783845,4.63496163,114110.0,114100.0,0.32869782]
[1754114784284,4.04108892,114110.0,114100.0,0.32869782]
[1754114784491,0.91404192,114110.0,114100.0,0.32869782]
[1754114784698,4.62124397,114110.0,114100.0,0.3616076]
[1754114785024,4.62124397,114110.0,114100.0,0.32869782]
[1754114785255,4.00000022,114110.0,114100.0,0.32869782]
[1754114785461,4.59387293,114110.0,114100.0,0.32869782]
[1754114787699,4.60759083,114110.0,114100.0,0.32869782]
[1754114788453,4.61880083,114110.0,114100.0,0.30248782]
[1754114788821,4.60759083,114110.0,114100.0,0.30248782]
[1754114788996,4.60759083,114110.0,114100.0,0.32502782]
[1754114790255,4.60759083,114110.0,114100.0,0.32815782]
[1754114792528,4.60759083,114110.0,114100.0,0.30248782]
[1754114792726,4.61880083,114110.0,114100.0,0.30248782]
[1754114793159,4.60759083,114110.0,114100.0,0.32502782]
[1754114793970,4.01371812,114110.0,114100.0,0.32502782]
[1754114794177,4.60759083,114110.0,114100.0,0.32502782]
[1754114794374,4.61880083,114110.0,114100.0,0.30248782]
[1754114794562,4.67252887,114110.0,114100.0,0.30248782]
[1754114794776,4.75672876,114110.0,114100.0,0.29370351]
[1754114794985,4.67252887,114110.0,114100.0,0.29370351]
[1754114795624,4.67252887,114110.0,114100.0,0.29270351]
[1754114795856,4.67252887,114110.0,114100.0,0.29170351]
[1754114796602,4.72525887,114110.0,114100.0,0.29170351]
[1754114797059,4.72525887,114110.0,114100.0,0.2829192]
[1754114797241,4.72525887,114110.0,114100.0,0.27413489]
[1754114797869,4.72525887,114110.0,114100.0,0.26535058]
[1754114798085,4.72525887,114110.0,114100.0,0.25656627]
[1754114799239,4.42066403,114110.0,114100.0,0.25656627]
[1754114799439,4.40945403,114110.0,114100.0,0.25656627]
[1754114799563,3.80186342,114110.0,114100.0,0.25656627]
[1754114799902,4.39573613,114110.0,114100.0,0.24778195]
[1754114800317,4.40694613,114110.0,114100.0,0.24778195]
[1754114800867,3.81307342,114110.0,114100.0,0.24778195]
[1754114801072,1.26868913,114110.0,114100.0,0.24778195]
[1754114801281,4.73573613,114110.0,114100.0,0.24778195]
[1754114801867,4.73573613,114110.0,114100.0,0.23899763]
[1754114802072,4.14186342,114110.0,114100.0,0.23899763]
[1754114802249,4.73573613,114110.0,114100.0,0.23899763]
[1754114802446,4.16679205,114110.0,114100.0,0.23021331]
[1754114802838,4.76066476,114110.0,114100.0,0.22142899]
[1754114803035,1.63361776,114110.0,114100.0,0.22142899]
[1754114803265,4.76066476,114110.0,114100.0,0.22142899]
[1754114803883,4.83114602,114110.0,114100.0,0.22142899]
[1754114804840,4.74694613,114110.0,114100.0,0.22142899]
[1754114805473,4.74694613,114110.0,114100.0,0.21264467]
[1754114805682,4.74694613,114110.0,114100.0,0.20386035]
[1754114805931,1.61989913,114110.0,114100.0,0.20386035]
[1754114806149,4.74694613,114110.0,114100.0,0.19507592]
[1754114806572,4.76066489,114110.0,114100.0,0.18629149]
[1754114806994,4.76066489,114110.0,114100.0,0.17750706]
[1754114807217,4.83365478,114110.0,114100.0,0.17750706]
[1754114807430,4.74945489,114110.0,114100.0,0.16872263]
[1754114807863,4.74945489,114110.0,114100.0,0.1599382]
[1754114808181,4.74945489,114110.0,114100.0,0.1824782]
[1754114808802,4.76066489,114110.0,114100.0,0.1599382]
[1754114810459,4.76066489,114110.0,114100.0,0.15115377]
[1754114810825,4.76066489,114110.0,114100.0,0.14236934]
[1754114810826,4.84486478,114110.0,114100.0,0.14236934]
[1754114811260,4.84486478,114110.0,114100.0,0.13358491]
[1754114811261,1.71781778,114110.0,114100.0,0.13358491]
[1754114811414,4.76066489,114110.0,114100.0,0.13358491]
[1754114812392,4.76066489,114110.0,114100.0,0.12479984]
[1754114813033,4.16679218,114110.0,114100.0,0.12479984]
[1754114813250,4.76066489,114110.0,114100.0,0.12479984]
[1754114814413,4.74945489,114110.0,114100.0,0.12479984]
[1754114815056,4.74945489,114110.0,114100.0,0.14921984]
[1754114815271,4.15558218,114110.0,114100.0,0.14921984]
[1754114815445,4.83365478,114110.0,114100.0,0.14921984]
[1754114816456,4.83365478,114110.0,114100.0,0.11601477]
[1754114816457,1.66657778,114110.0,114100.0,0.11601477]
[1754114816663,4.79362478,114110.0,114100.0,0.1072297]
[1754114817027,4.79362478,114110.0,114100.0,0.09844463]
[1754114817483,4.79362478,114110.0,114100.0,0.08965956]
[1754114817484,1.66657778,114110.0,114100.0,0.08965956]
[1754114817713,4.79362478,114110.0,114100.0,0.08965956]
[1754114817917,4.79362478,114110.0,114100.0,0.08087449]
[1754114818351,4.79362478,114110.0,114100.0,0.07208942]
[1754114818813,4.79362478,114110.0,114100.0,0.06330378]
[1754114819044,4.77990602,114110.0,114100.0,0.06330378]
[1754114819272,4.77990602,114110.0,114100.0,0.05451814]
[1754114819479,4.77990602,114110.0,114100.0,0.0457325]
[1754114819682,4.78840602,114110.0,114100.0,0.0457325]
[1754114819896,4.78840602,114110.0,114100.0,0.03694686]
[1754114820363,4.78840602,114110.0,114100.0,0.02816122]
[1754114820627,4.78840602,114110.0,114100.0,0.01937558]
[1754114821051,4.78840602,114110.0,114100.0,0.01058994]
[1754114821401,4.19453331,114110.0,114100.0,0.0018043]
[1754114821602,4.20825317,114110.0,114100.0,0.0018043]
[1754114821804,0.93273385,114100.0,114090.0,0.02795]
[1754114822091,4.87761345,114100.0,114090.0,0.02799772]
[1754114822316,4.87761345,114100.0,114090.0,0.03012772]
[1754114822529,4.91743543,114100.0,114090.0,0.02799772]
[1754114823915,4.32356272,114100.0,114090.0,0.02799772]
[1754114824129,4.94737239,114100.0,114090.0,0.02799772]
[1754114826587,4.9610926,114100.0,114090.0,0.02799772]
[1754114826804,3.80979622,114090.0,114080.0,0.00282958]
[1754114827020,5.40540638,114090.0,114080.0,0.0033079]
[1754114827252,4.69259528,114090.0,114080.0,0.0033079]
[1754114827481,4.16990704,114090.0,114080.0,0.0033079]
[1754114827702,4.70471528,114090.0,114080.0,0.0277279]
[1754114827902,4.70471528,114090.0,114070.0,0.0004]
[1754114827903,3.85981158,114080.0,114070.0,0.0004]
[1754114828153,4.65461075,114080.0,114070.0,0.02486779]
[1754114828354,4.85461075,114080.0,114070.0,0.02789779]
[1754114828563,4.86833257,114080.0,114070.0,0.02789779]
[1754114828976,4.95253246,114080.0,114070.0,0.02789779]
[1754114829428,4.41772422,114080.0,114070.0,0.02486779]
[1754114829818,4.95253246,114080.0,114070.0,0.02486779]
[1754114830806,4.97891046,114080.0,114070.0,0.02486779]
[1754114831154,4.89471057,114080.0,114070.0,0.02486779]
[1754114831773,1.76766357,114080.0,114070.0,0.00044779]
[1754114831900,4.89471057,114080.0,114070.0,0.02789779]
[1754114832112,4.86733953,114080.0,114070.0,0.02789779]
[1754114832319,4.88837953,114080.0,114070.0,0.00303]
[1754114832543,4.95153942,114080.0,114070.0,0.00303]
[1754114833337,4.86733953,114080.0,114070.0,0.00303]
[1754114833537,3.78411129,114080.0,114070.0,0.00516]
[1754114833741,4.80891953,114080.0,114070.0,0.00516]
[1754114834395,4.80891953,114080.0,114070.0,0.02958]
[1754114834845,4.30047629,114080.0,114070.0,0.02958]
[1754114835049,4.83528453,114080.0,114070.0,0.02958]
[1754114836165,4.30047629,114080.0,114070.0,0.02958]
[1754114836365,4.83528453,114080.0,114070.0,0.02958]
[1754114836620,1.70823753,114080.0,114070.0,0.02958]
[1754114836825,4.83528453,114080.0,114070.0,0.02958]
[1754114839030,4.84378453,114080.0,114070.0,0.02958]
[1754114839983,4.16897629,114080.0,114070.0,0.02958]
[1754114840189,4.30873629,114080.0,114070.0,0.56438824]
[1754114840395,4.30873629,114080.0,114070.0,0.02958]
[1754114841345,4.30719713,114080.0,114070.0,0.02958]
[1754114842435,4.30707713,114080.0,114070.0,0.02958]
[1754114844316,4.83338537,114080.0,114070.0,0.02958]
[1754114844685,4.81966355,114080.0,114070.0,0.02958]
[1754114845009,4.28485531,114080.0,114070.0,0.02958]
[1754114845209,4.14521531,114080.0,114070.0,0.02958]
[1754114845569,4.14521531,114080.0,114070.0,0.62086706]
[1754114845570,3.982945,114080.0,114070.0,0.62086706]
[1754114845783,3.782945,114080.0,114070.0,0.62086706]
[1754114845985,3.95826056,114080.0,114070.0,0.62086706]
[1754114846189,3.95826056,114080.0,114070.0,0.56438824]
[1754114847799,3.9719816,114080.0,114070.0,0.56438824]
[1754114847999,3.8219816,114080.0,114070.0,0.56438824]
[1754114849995,0.6949346,114080.0,114070.0,0.56438824]
[1754114850243,3.8219816,114080.0,114070.0,0.56438824]
[1754114860197,3.8219816,114080.0,114070.0,0.02958]
[1754114860646,3.90618149,114080.0,114070.0,0.56438824]
[1754114861435,3.8219816,114080.0,114070.0,0.56438824]
[1754114862199,3.8219816,114080.0,114070.0,0.02958]
[1754114862438,3.8219816,114080.0,114070.0,0.56438824]
[1754114864625,3.8219816,114080.0,114070.0,0.02958]
[1754114864867,3.8219816,114080.0,114070.0,0.56438824]
[1754114869387,3.8219816,114080.0,114070.0,0.02958]
[1754114869778,3.80826056,114080.0,114070.0,0.02958]
[1754114870149,3.80826056,114080.0,114070.0,0.56438824]
[1754114871545,3.89246045,114080.0,114070.0,0.02958]
[1754114872588,3.90618212,114080.0,114070.0,0.02958]
[1754114872808,3.82198223,114080.0,114070.0,0.02958]
[1754114873017,3.82198223,114080.0,114070.0,0.56438824]
[1754114873214,3.48198223,114080.0,114070.0,0.56438824]
[1754114873869,3.46826056,114080.0,114070.0,0.02958]
[1754114875299,3.80826056,114080.0,114070.0,0.02958]
[1754114875876,3.80826056,114080.0,114070.0,0.56438824]
[1754114876060,3.80826056,114080.0,114070.0,0.02958]
[1754114876473,0.68121356,114080.0,114070.0,0.02958]
[1754114876671,3.82198221,114080.0,114070.0,0.00303]
[1754114876883,3.82198221,114080.0,114070.0,0.02869]
[1754114877510,3.84418221,114080.0,114070.0,0.02869]
[1754114878162,3.82198221,114080.0,114070.0,0.02869]
[1754114880553,3.84418221,114080.0,114070.0,0.02869]
[1754114881432,3.82198221,114080.0,114070.0,0.02869]
[1754114882103,3.82198221,114080.0,114070.0,0.03082]
[1754114885044,0.69493521,114080.0,114070.0,0.03082]
[1754114885243,3.82198221,114080.0,114070.0,0.03082]
[1754114886470,3.76697724,114080.0,114070.0,0.03082]
[1754114886651,3.76697724,114080.0,114070.0,0.06104121]
[1754114886880,3.76697724,114080.0,114070.0,0.03082]
[1754114889675,3.79388765,114080.0,114070.0,0.03082]
[1754114892713,3.780166,114080.0,114070.0,0.03082]
[1754114893554,3.57358024,114080.0,114070.0,0.03082]
[1754114893891,3.7488958,114080.0,114070.0,0.03082]
[1754114895884,0.6218488,114080.0,114070.0,0.03082]
[1754114896062,3.7488958,114080.0,114070.0,0.03082]
[1754114896988,3.76261706,114080.0,114070.0,0.03082]
[1754114900023,0.63557006,114080.0,114070.0,0.03082]
[1754114900166,3.76261706,114080.0,114070.0,0.03082]
[1754114904975,3.76261706,114080.0,114070.0,0.65462186]
[1754114906317,0.63557006,114080.0,114070.0,0.03082]
[1754114906528,3.76261706,114080.0,114070.0,0.65462186]
[1754114906973,3.5865815,114080.0,114070.0,0.72012405]
[1754114907199,3.4488215,114080.0,114070.0,0.72012405]
[1754114907843,3.4488215,114080.0,114070.0,0.85784405]
[1754114909263,3.4488215,114080.0,114070.0,0.23404219]
[1754114909486,3.4488215,114080.0,114070.0,0.79234186]
[1754114909903,3.4488215,114080.0,114070.0,0.79434186]
[1754114910578,3.4488215,114080.0,114070.0,0.79534186]
[1754114910785,3.4488215,114080.0,114070.0,0.17154]
[1754114910989,3.4488215,114080.0,114070.0,0.79534186]
[1754114912060,3.4488215,114080.0,114070.0,0.87954175]
[1754114913144,0.3217745,114080.0,114070.0,0.87954175]
[1754114913368,3.16767867,114080.0,114070.0,0.87954175]
[1754114913585,0.02691041,114080.0,114070.0,0.96374164]
[1754114914015,0.36691041,114080.0,114070.0,0.96374164]
[1754114914227,0.36691041,114080.0,114070.0,0.96074164]
[1754114915060,0.36691041,114080.0,114070.0,0.96374164]
[1754114915587,0.36691041,114080.0,114070.0,0.96574164]
[1754114916891,0.36691041,114080.0,114070.0,0.34193978]
[1754114917098,0.36691041,114080.0,114070.0,0.88154175]
[1754114918207,0.38062993,114080.0,114070.0,0.88154175]
[1754114922824,0.38062993,114080.0,114070.0,0.25773989]
[1754114923386,0.38062993,114080.0,114070.0,0.88154175]
[1754114926333,0.38062993,114080.0,114070.0,0.12001989]
[1754114926549,0.38062993,114080.0,114070.0,0.88114175]
[1754114927889,0.38062993,114080.0,114070.0,0.96534164]
[1754114930721,0.38062993,114080.0,114070.0,0.99169764]
[1754114936048,0.36691041,114080.0,114070.0,0.99169764]
[1754114936259,0.36691041,114080.0,114070.0,0.36789578]
[1754114936468,0.36691041,114080.0,114070.0,0.90749775]
[1754114938901,0.38062956,114080.0,114070.0,0.90749775]
[1754114943292,0.36691041,114080.0,114070.0,0.28369589]
[1754114943526,0.36691041,114080.0,114070.0,0.90749775]
[1754114944905,0.17484044,114080.0,114070.0,0.90749775]
[1754114945134,0.5,114090.0,114070.0,0.99169764]
[1754114945311,3.127047,114080.0,114070.0,0.20188578]
[1754114945562,3.127047,114090.0,114070.0,0.96232764]
[1754114945775,3.127047,114090.0,114080.0,0.76040186]
[1754114945984,3.127047,114090.0,114080.0,0.79021186]
[1754114946190,3.127047,114090.0,114080.0,0.87650175]
[1754114946414,3.14076578,114090.0,114080.0,0.87650175]
[1754114946805,3.48076578,114090.0,114080.0,0.87650175]
[1754114947424,3.48076578,114090.0,114080.0,0.87750175]
[1754114947633,3.50777585,114090.0,114080.0,0.87750175]
[1754114947829,3.50777585,114090.0,114080.0,0.25369989]
[1754114948059,3.50777585,114090.0,114080.0,0.79330186]
[1754114948441,3.50777585,114090.0,114080.0,0.79430186]
[1754114955328,3.50777585,114090.0,114080.0,0.1705]
[1754114955534,3.50777585,114090.0,114080.0,0.79430186]
[1754114962308,3.50777585,114090.0,114080.0,0.1705]
[1754114962523,3.50777585,114090.0,114080.0,0.79430186]
[1754114963424,3.50777585,114090.0,114080.0,0.82519982]
[1754114963963,0.38072885,114090.0,114080.0,0.82519982]
[1754114964175,3.50777585,114090.0,114080.0,0.82519982]
[1754114964385,3.50777585,114090.0,114080.0,0.79430186]
[1754114966153,3.49405707,114090.0,114080.0,0.79430186]
[1754114968998,3.49405707,114090.0,114080.0,0.1705]
[1754114969204,3.50777595,114090.0,114080.0,0.1705]
[1754114969404,3.53227595,114090.0,114080.0,0.16841]
[1754114970158,3.53227595,114090.0,114080.0,0.79221186]
[1754114970363,3.53227595,114090.0,114080.0,0.16841]
[1754114970574,3.50777595,114090.0,114080.0,0.16841]
[1754114971007,3.50777595,114090.0,114080.0,0.002]
[1754114971008,3.94601927,114090.0,114080.0,0.002]
[1754114971226,3.79237793,114070.0,114060.0,0.0004]
[1754114971442,4.60941536,114070.0,114060.0,0.00044784]
[1754114971658,4.63191536,114070.0,114060.0,0.00044784]
[1754114971874,4.67200131,114070.0,114060.0,0.00044784]
[1754114972521,4.67200131,114070.0,114060.0,0.00144784]
[1754114972958,1.54495431,114070.0,114060.0,0.00144784]
[1754114973167,4.67200131,114070.0,114060.0,0.00144784]
[1754114973586,4.49088515,114070.0,114060.0,0.00144784]
[1754114974487,4.49088515,114070.0,114060.0,0.00044784]
[1754114974705,4.4801622,114070.0,114060.0,0.00044784]
[1754114976036,1.3531152,114070.0,114060.0,0.00044784]
[1754114976297,4.4801622,114070.0,114060.0,0.00044784]
[1754114977402,4.4938854,114070.0,114060.0,0.00044784]
[1754114982714,1.3668384,114070.0,114060.0,0.00044784]
[1754114982925,4.4938854,114070.0,114060.0,0.00044784]
[1754114983656,4.50734838,114070.0,114060.0,0.00044784]
[1754114983834,4.4938854,114070.0,114060.0,0.00044784]
[1754114986124,4.4938854,114070.0,114060.0,0.02903784]
[1754114986764,4.4938854,114070.0,114060.0,0.00338784]
[1754114986983,4.99312667,114070.0,114060.0,0.00338784]
[1754114987190,4.4938854,114070.0,114060.0,0.00338784]
[1754114987578,4.4938854,114070.0,114060.0,0.00044784]
[1754114987996,1.3668384,114070.0,114060.0,0.00044784]
[1754114988197,4.4938854,114070.0,114060.0,0.00044784]
[1754114988854,4.99312667,114070.0,114060.0,0.00044784]
[1754114989166,1.3668384,114070.0,114060.0,0.00044784]
[1754114989373,4.4938854,114070.0,114060.0,0.00044784]
[1754114991390,4.04737413,114070.0,114060.0,0.00044784]
[1754114991658,3.96828113,114070.0,114060.0,0.00044784]
[1754114991893,4.4675224,114070.0,114060.0,0.00044784]
[1754114992105,4.4450224,114070.0,114060.0,0.00044784]
[1754114992348,3.94578113,114070.0,114060.0,0.02903784]
[1754114992570,4.4450224,114070.0,114060.0,0.02903784]
[1754114994187,4.4667824,114070.0,114060.0,0.00338784]
[1754114994427,1.3397354,114070.0,114060.0,0.00338784]
[1754114994614,4.4667824,114070.0,114060.0,0.00338784]
[1754114996825,4.4450224,114070.0,114060.0,0.02837784]
[1754114998835,3.6423933,114060.0,114050.0,0.0004]
[1754114999060,4.64087584,114060.0,114050.0,0.0004]
[1754114999284,3.7239848,114060.0,114050.0,0.0004]
[1754114999498,4.72246734,114060.0,114050.0,0.0004]
[1754114999713,4.67546098,114060.0,114050.0,0.0004]
[1754114999936,4.74664573,114060.0,114050.0,0.0004]
[1754115000163,3.74816319,114060.0,114050.0,0.0004]
[1754115000611,3.467047,114050.0,114040.0,0.02788]
[1754115000831,0.34,114040.0,114030.0,0.51964127]
[1754115001039,0.34,114040.0,114030.0,0.69019105]
[1754115001440,0.34,114040.0,114030.0,0.85478105]
[1754115002514,0.34,114040.0,114030.0,0.85787105]
[1754115002728,0.34,114040.0,114030.0,0.77367116]
[1754115003122,0.34,114040.0,114030.0,0.27642989]
[1754115003335,0.34,114040.0,114030.0,0.77567116]
[1754115005000,0.34,114040.0,114030.0,1.27491243]
[1754115005211,0.34,114040.0,114030.0,0.77567116]
[1754115005415,0.34,114040.0,114030.0,0.85987105]
[1754115006035,0.34,114040.0,114030.0,0.86287105]
[1754115006258,0.35372408,114040.0,114030.0,0.86287105]
[1754115006986,0.35372408,114040.0,114030.0,0.86281023]
[1754115007656,0.35372408,114040.0,114030.0,0.36362978]
[1754115007871,0.35372408,114040.0,114030.0,0.77861034]
[1754115010727,0.35372408,114040.0,114030.0,0.27942989]
[1754115010953,0.35372408,114040.0,114030.0,0.77861034]
[1754115012006,0.35372408,114040.0,114030.0,0.27942989]
[1754115012424,0.35372408,114040.0,114030.0,0.77861034]
[1754115015232,0.35372408,114040.0,114030.0,0.81320717]
[1754115017210,0.34,114040.0,114030.0,0.81320717]
[1754115020000,0.35372387,114040.0,114030.0,0.81320717]
[1754115021611,0.35372387,114040.0,114030.0,0.77861034]
[1754115021859,0.35372387,114040.0,114030.0,0.27942989]
[1754115022048,0.35372387,114040.0,114030.0,0.77861034]
[1754115023854,0.35372387,114040.0,114030.0,0.27942989]
[1754115024072,0.35372387,114040.0,114030.0,0.77861034]
[1754115025953,0.35372387,114040.0,114030.0,0.85649137]